bitfinex-derivatives/quotes_SOLF0:USTF0_20241005
["timestamp","ask_amount","ask_price","bid_price","bid_amount"]
[1728094422641,6.96598106,143.04,143.03,0.12502]
[1728094423436,3.4951,143.05,143.03,0.12502]
[1728094426238,3.4953,143.04,143.03,0.12502]
[1728094426630,7.53,143.06,143.03,0.12502]
[1728094426835,8.5864896,143.05,143.03,0.12502]
[1728094427030,3.4952,143.05,143.03,0.12502]
[1728094437360,7.06931695,143.04,143.03,0.12502]
[1728094440251,7.06931695,143.04,142.98,4.86]
[1728094440252,11.10401695,143.04,142.98,4.86]
[1728094440451,3.4963,143.0,142.98,4.86]
[1728094441051,7.53,143.02,142.98,4.86]
[1728094441052,3.4961,143.01,142.98,4.86]
[1728094441356,3.4961,143.01,142.98,12.39]
[1728094442443,7.03965734,143.02,142.98,12.39]
[1728094442647,12.39,143.03,142.98,12.39]
[1728094442956,15.92177291,143.03,142.98,12.39]
[1728094443157,8.39177291,143.03,142.98,12.39]
[1728094444164,3.496,143.01,142.98,12.39]
[1728094449561,8.39177291,143.03,142.98,12.39]
[1728094449767,3.4959,143.02,142.98,12.39]
[1728094450266,8.39177291,143.03,142.98,12.39]
[1728094450463,11.88737291,143.03,142.98,15.8867]
[1728094451361,11.88737291,143.03,142.99,7.53]
[1728094453971,7.02737291,143.03,142.99,7.53]
[1728094454175,0.12502,143.09,142.99,7.53]
[1728094454364,3.4952,143.05,143.0,11.0263]
[1728094455768,7.53,143.06,143.0,7.53]
[1728094456066,3.4955,143.04,143.0,7.53]
[1728094457961,3.4955,143.04,142.99,4.7986]
[1728094458169,3.4955,143.04,143.01,7.53]
[1728094459564,3.4955,143.04,143.0,7.53]
[1728094461260,7.53,143.06,143.0,7.53]
[1728094461261,3.4952,143.05,143.0,7.53]
[1728094462570,11.02143656,143.04,142.99,8.8321]
[1728094462961,11.02143656,143.04,142.99,12.3286]
[1728094463364,11.02143656,143.04,142.99,8.8321]
[1728094463873,3.4956,143.03,142.99,8.8321]
[1728094464168,7.53,143.04,143.0,7.53]
[1728094464771,0.12502,143.09,142.99,1.3021]
[1728094464772,7.53,143.07,143.01,7.53]
[1728094464968,7.53,143.07,143.01,12.39]
[1728094465571,3.4949,143.06,143.01,15.8858]
[1728094465762,7.53,143.07,143.03,7.53]
[1728094467273,3.4947,143.07,143.03,7.53]
[1728094470780,11.0247,143.07,143.03,7.53]
[1728094477676,3.4947,143.07,143.03,7.53]
[1728094492489,3.4944,143.08,143.03,11.0254]
[1728094492683,7.65502,143.09,143.04,7.53]
[1728094492989,0.12502,143.09,143.04,7.53]
[1728094493279,0.12502,143.09,143.04,12.39]
[1728094493486,3.61922,143.09,143.04,15.8852]
[1728094494191,3.4943,143.08,143.04,12.39]
[1728094494974,3.61922,143.09,143.04,15.8853]
[1728094495180,3.61922,143.09,143.05,7.53]
[1728094495682,3.61922,143.09,143.05,11.025]
[1728094495683,0.12502,143.09,143.05,11.025]
[1728094498089,0.12502,143.09,143.06,3.4948]
[1728094498287,0.12502,143.09,143.07,7.53]
[1728094508106,81.92314623,143.1,143.08,7.53]
[1728094508293,81.92314623,143.1,143.09,7.53]
[1728094508603,7.03548183,143.14,143.09,11.0241]
[1728094508804,0.12502,143.15,143.13,7.53]
[1728094512406,0.12502,143.15,143.13,12.39]
[1728094516694,0.12502,143.15,143.14,2.7322]
[1728094517408,0.12502,143.15,143.14,6.2251]
[1728094517907,0.12502,143.15,143.14,2.7322]
[1728094518103,0.12502,143.15,143.14,10.2622]
[1728094519610,0.12502,143.15,143.14,13.7551]
[1728094526710,3.4914,143.2,143.17,3.4921]
[1728094526911,3.4914,143.2,143.18,7.53]
[1728094527915,0.12502,143.21,143.19,7.53]
[1728094538116,0.12502,143.21,143.17,4.86]
[1728094538318,0.12502,143.21,143.19,7.53]
[1728094540420,7.53,143.2,143.14,2.7322]
[1728094540620,7.53,143.18,143.14,2.7322]
[1728094541012,3.4924,143.16,143.14,2.7322]
[1728094541520,7.53,143.16,143.09,1.42672]
[1728094541712,7.53,143.15,143.1,12.39]
[1728094542024,7.53,143.15,143.11,7.53]
[1728094543027,3.4927,143.15,143.11,7.53]
[1728094544117,3.4927,143.15,143.12,7.53]
[1728094544316,3.4927,143.15,143.1,4.86]
[1728094544317,3.4925,143.16,143.13,7.53]
[1728094544518,12.48791152,143.2,143.14,7.53]
[1728094544718,12.48791152,143.2,143.15,7.53]
[1728094545831,11.08301152,143.2,143.15,7.53]
[1728094546126,3.4918,143.19,143.15,7.53]
[1728094547127,7.65502,143.21,143.15,7.53]
[1728094547327,7.65502,143.21,143.13,4.86]
[1728094547328,3.4915,143.2,143.17,7.53]
[1728094548817,3.4915,143.2,143.16,4.86]
[1728094549026,3.4915,143.2,143.16,12.39]
[1728094550333,7.53,143.2,143.16,4.86]
[1728094550532,3.4919,143.19,143.16,4.86]
[1728094551229,3.4919,143.18,143.16,4.86]
[1728094558928,7.53,143.2,143.16,4.86]
[1728094559129,3.4917,143.19,143.16,12.39]
[1728094560230,3.4917,143.19,143.16,4.86]
[1728094560539,7.53,143.17,143.09,1.42672]
[1728094560841,7.53,143.16,143.1,12.39]
[1728094561536,4.86,143.18,143.1,12.39]
[1728094561734,3.4926,143.16,143.12,7.53]
[1728094563733,7.53,143.17,143.12,7.53]
[1728094564036,3.4926,143.15,143.12,7.53]
[1728094565041,3.4926,143.15,143.1,8.3538]
[1728094565335,3.4926,143.15,143.11,7.53]
[1728094569240,4.86,143.18,143.11,7.53]
[1728094569451,7.53,143.17,143.11,7.53]
[1728094569944,7.53,143.17,143.12,7.53]
[1728094571140,3.4924,143.16,143.12,7.53]
[1728094587654,3.4924,143.16,143.12,11.0233]
[1728094587951,11.0222,143.17,143.12,11.0233]
[1728094589661,7.53,143.17,143.11,4.86]
[1728094589858,3.4925,143.16,143.11,8.3536]
[1728094590070,3.4925,143.16,143.13,7.53]
[1728094591867,7.53,143.17,143.13,7.53]
[1728094592165,11.0222,143.17,143.13,7.53]
[1728094599992,3.4922,143.17,143.13,7.53]
[1728094612695,3.492,143.18,143.13,11.0231]
[1728094614597,3.4921,143.17,143.13,11.0231]
[1728094615500,3.4921,143.17,143.13,7.53]
[1728094620203,7.53,143.14,143.1,7.6258]
[1728094620804,3.4933,143.13,143.1,7.6258]
[1728094621114,7.53,143.14,143.1,15.1558]
[1728094621295,3.4928,143.15,143.1,18.6496]
[1728094621806,3.4928,143.15,143.12,7.53]
[1728094624002,3.4925,143.16,143.12,7.53]
[1728094628111,85.36596538,143.17,143.13,7.53]
[1728094629711,81.87376538,143.17,143.14,7.53]
[1728094632303,81.87376538,143.17,143.16,7.53]
[1728094632608,0.12502,143.21,143.16,7.53]
[1728094632809,0.12502,143.21,143.18,7.53]
[1728094633509,0.12502,143.21,143.19,7.53]
[1728094634607,0.12502,143.21,143.19,12.37]
[1728094636405,0.12502,143.21,143.19,15.8615]
[1728094637008,0.12502,143.21,143.2,7.53]
[1728094639518,0.12502,143.21,143.2,11.0214]
[1728094643614,162.23507545,143.27,143.22,3.4909]
[1728094643817,162.23507545,143.27,143.24,7.53]
[1728094646421,162.23507545,143.27,143.24,11.0204]
[1728094647522,162.23507545,143.27,143.25,7.53]
[1728094649221,165.72477545,143.27,143.24,7.53]
[1728094655419,165.72477545,143.27,143.24,11.0204]
[1728094656628,165.72477545,143.27,143.24,7.53]
[1728094662434,165.72477545,143.27,143.25,7.53]
[1728094662825,165.72477545,143.27,143.23,6.2485]
[1728094663031,3.49,143.26,143.23,10.2879]
[1728094664435,162.23507545,143.27,143.23,13.7784]
[1728094664436,165.72487545,143.27,143.23,13.7784]
[1728094668635,165.72487545,143.27,143.24,3.4904]
[1728094672039,165.72487545,143.27,143.23,13.7784]
[1728094675543,165.72487545,143.27,143.23,10.2879]
[1728094675746,165.72487545,143.27,143.24,3.4904]
[1728094678553,165.72487545,143.27,143.25,7.53]
[1728094678554,0.12502,143.27,143.25,7.53]
[1728094678750,0.12502,143.27,143.25,11.0201]
[1728094680152,0.12502,143.27,143.25,15.8601]
[1728094680354,0.12502,143.27,143.25,4.84]
[1728094681146,0.12502,143.27,143.26,7.53]
[1728094681647,0.12502,143.27,143.26,11.0199]
[1728094683752,0.12502,143.27,143.26,12.401]
[1728094685352,0.12502,143.27,143.26,13.7397]
[1728094692275,0.12502,143.27,143.26,4.84]
[1728094692574,0.12502,143.27,143.26,12.37]
[1728094693270,0.12502,143.27,143.26,15.8599]
[1728094693471,0.12502,143.27,143.26,11.0199]
[1728094693768,0.12502,143.27,143.26,15.8599]
[1728094718192,0.12502,143.33,143.26,12.37]
[1728094718377,0.12502,143.33,143.31,7.53]
[1728094718581,0.12502,143.33,143.31,12.37]
[1728094718791,0.12502,143.33,143.32,3.4885]
[1728094720083,0.12502,143.39,143.31,12.37]
[1728094720391,0.12502,143.39,143.37,7.53]
[1728094721891,0.12502,143.39,143.37,11.0172]
[1728094722193,0.12502,143.39,143.37,7.53]
[1728094723086,0.12502,143.39,143.35,4.84]
[1728094723286,0.12502,143.39,143.36,7.53]
[1728094726496,0.12502,143.39,143.37,7.53]
[1728094733996,3.61202,143.39,143.36,12.37]
[1728094734297,0.12502,143.39,143.35,4.84]
[1728094734804,3.4871,143.38,143.35,4.84]
[1728094736596,3.4871,143.38,143.36,7.53]
[1728094743606,0.12502,143.39,143.37,7.53]
[1728094743803,3.61192,143.39,143.37,7.53]
[1728094745911,0.12502,143.39,143.38,7.53]
[1728094749024,0.12502,143.39,143.38,11.017]
[1728094750318,0.12502,143.39,143.38,15.857]
[1728094752821,3.4857,143.44,143.4,3.4864]
[1728094753018,3.4857,143.44,143.41,7.53]
[1728094753213,0.12502,143.45,143.41,12.37]
[1728094753619,3.61042,143.45,143.41,15.8561]
[1728094753819,3.61042,143.45,143.43,7.53]
[1728094754024,0.12502,143.45,143.43,7.53]
[1728094754617,0.12502,143.45,143.44,7.53]
[1728094757730,0.12502,143.45,143.44,15.8556]
[1728094759418,0.12502,143.45,143.44,12.37]
[1728094762733,0.12502,143.45,143.44,15.8556]
[1728094763735,0.12502,143.45,143.44,12.37]
[1728094766435,0.12502,143.45,143.44,15.8556]
[1728094766640,0.12502,143.45,143.44,12.37]
[1728094769637,0.12502,143.45,143.4,1.3244]
[1728094769837,0.12502,143.45,143.42,7.53]
[1728094771138,3.61052,143.45,143.42,7.53]
[1728094772939,0.12502,143.45,143.42,4.84]
[1728094773245,0.12502,143.45,143.41,4.84]
[1728094773435,7.65502,143.45,143.41,4.84]
[1728094774544,3.4859,143.43,143.41,4.84]
[1728094774940,3.4859,143.43,143.4,13.6944]
[1728094782747,3.4856,143.44,143.42,7.53]
[1728094783640,3.61052,143.45,143.42,7.53]
[1728094784844,3.61052,143.45,143.44,7.53]
[1728094785049,0.12502,143.45,143.44,7.53]
[1728094786246,3.61032,143.45,143.44,7.53]
[1728094788344,10.73624801,143.55,143.45,20.94]
[1728094788744,10.73624801,143.55,143.54,7.53]
[1728094788944,10.73624801,143.55,143.53,4.84]
[1728094789151,10.73624801,143.55,143.54,7.53]
[1728094789946,10.73624801,143.55,143.54,14.17949529]
[1728094790349,10.73624801,143.55,143.54,7.53]
[1728094790868,11.79741846,143.59,143.54,7.53]
[1728094791156,10.48111846,143.59,143.56,7.53]
[1728094791550,10.48111846,143.59,143.56,14.17949529]
[1728094792348,10.48111846,143.59,143.56,17.66209529]
[1728094792650,10.48111846,143.59,143.56,22.48209529]
[1728094792841,10.48111846,143.59,143.56,15.8326]
[1728094793045,10.48111846,143.59,143.56,26.55894757]
[1728094793245,10.48111846,143.59,143.56,22.85427214]
[1728094793653,10.48111846,143.59,143.57,3.4822]
[1728094793854,10.48111846,143.59,143.58,14.55167214]
[1728094795652,10.48111846,143.59,143.58,7.02167214]
[1728094795855,10.48111846,143.59,143.57,7.02167214]
[1728094797454,10.48111846,143.59,143.56,19.37167214]
[1728094798767,10.48111846,143.59,143.57,7.53]
[1728094798962,10.48111846,143.59,143.57,14.55167214]
[1728094799363,10.48111846,143.59,143.57,7.53]
[1728094799953,10.48111846,143.59,143.57,14.55167214]
[1728094800161,10.48111846,143.59,143.57,7.53]
[1728094801763,10.48111846,143.59,143.58,7.53]
[1728094802355,10.48111846,143.59,143.57,7.00398906]
[1728094802569,10.48111846,143.59,143.58,7.53]
[1728094803653,10.17546688,143.6,143.58,7.53]
[1728094803860,10.17546688,143.6,143.59,15.8319]
[1728094804255,10.17546688,143.6,143.59,22.83588906]
[1728094804764,10.17546688,143.6,143.59,15.8319]
[1728094805560,10.17546688,143.6,143.59,22.83588906]
[1728094805961,10.17546688,143.6,143.59,15.8319]
[1728094806561,10.17546688,143.6,143.59,22.83588906]
[1728094806763,13.65716688,143.6,143.57,7.00398906]
[1728094806969,10.17546688,143.6,143.57,14.53398906]
[1728094807166,10.17546688,143.6,143.57,7.00398906]
[1728094807866,10.17546688,143.6,143.56,14.53398906]
[1728094808063,13.65726688,143.6,143.56,14.53398906]
[1728094809266,10.17546688,143.6,143.56,3.4825]
[1728094809469,10.17546688,143.6,143.57,7.53]
[1728094810163,13.65716688,143.6,143.57,7.53]
[1728094810667,3.4821,143.59,143.56,6.99147646]
[1728094810867,3.4821,143.59,143.55,19.34147646]
[1728094811768,3.4821,143.59,143.56,6.99147646]
[1728094812168,3.4821,143.59,143.55,22.82437646]
[1728094812365,3.4821,143.59,143.56,6.99147646]
[1728094812773,3.4821,143.59,143.55,22.82437646]
[1728094812974,3.4821,143.59,143.56,6.99147646]
[1728094813376,3.4821,143.59,143.55,22.82437646]
[1728094813686,15.01976688,143.6,143.57,7.53]
[1728094813868,11.53796688,143.6,143.57,7.53]
[1728094814073,11.53796688,143.6,143.57,11.0124]
[1728094815579,11.53796688,143.6,143.57,18.00644257]
[1728094815786,11.53796688,143.6,143.57,11.0124]
[1728094815970,11.53796688,143.6,143.57,18.00644257]
[1728094816174,11.53796688,143.6,143.57,11.0124]
[1728094816376,11.53796688,143.6,143.57,18.00644257]
[1728094816574,11.53796688,143.6,143.57,11.0124]
[1728094816771,11.53796688,143.6,143.57,18.00644257]
[1728094816967,10.17546688,143.6,143.59,7.53]
[1728094817575,10.17546688,143.6,143.59,18.00594257]
[1728094820882,10.17546688,143.6,143.59,29.20399575]
[1728094821085,10.17546688,143.6,143.59,11.0119]
[1728094821273,10.17546688,143.6,143.59,29.20399543]
[1728094821477,10.17546688,143.6,143.59,18.00885978]
[1728094824387,10.17546688,143.6,143.59,22.20951928]
[1728094824685,10.17546688,143.6,143.59,18.01041205]
[1728094824985,10.17546688,143.6,143.59,10.48041205]
[1728094825487,10.17546688,143.6,143.59,18.01041205]
[1728094827189,10.17546688,143.6,143.59,29.20803133]
[1728094828891,10.17546688,143.6,143.59,18.01041205]
[1728094829191,10.17546688,143.6,143.59,29.20803133]
[1728094830397,10.17546688,143.6,143.59,18.01041205]
[1728094831387,10.17546688,143.6,143.59,11.0119]
[1728094831582,10.17546688,143.6,143.59,6.9940203]
[1728094831890,10.17546688,143.6,143.58,6.9940203]
[1728094832190,17.70546688,143.6,143.58,6.9940203]
[1728094832389,3.4822,143.58,143.57,6.9940203]
[1728094832987,3.4822,143.58,143.56,5.02]
[1728094833381,3.4824,143.57,143.56,5.02]
[1728094833587,3.4824,143.57,143.56,12.0140203]
[1728094833789,3.4824,143.57,143.56,5.02]
[1728094835394,3.4822,143.58,143.56,5.02]
[1728094836692,17.70546688,143.6,143.56,5.02]
[1728094836891,7.53,143.59,143.54,5.02]
[1728094837098,10.2496,143.59,143.54,12.55]
[1728094837292,3.4823,143.58,143.54,12.55]
[1728094837490,10.2496,143.59,143.54,12.55]
[1728094838091,3.4825,143.57,143.54,12.55]
[1728094839201,2.7196,143.59,143.56,7.53]
[1728094839995,6.2017,143.59,143.56,7.53]
[1728094840197,2.7196,143.59,143.55,7.53]
[1728094840591,3.4823,143.58,143.55,7.53]
[1728094840790,2.7196,143.59,143.55,7.53]
[1728094841998,3.4824,143.57,143.54,12.55]
[1728094842501,2.7196,143.59,143.54,12.55]
[1728094842901,3.4825,143.57,143.54,12.55]
[1728094845500,7.53,143.58,143.54,7.53]
[1728094846807,3.4824,143.57,143.54,7.53]
[1728094847303,3.4827,143.56,143.54,7.53]
[1728094848598,3.4822,143.58,143.55,7.53]
[1728094848996,2.7196,143.59,143.55,7.53]
[1728094849307,6.2016,143.59,143.57,7.53]
[1728094850002,3.482,143.59,143.57,7.53]
[1728094853005,3.482,143.59,143.56,7.53]
[1728094855215,10.17546688,143.6,143.57,7.53]
[1728094855808,13.65726688,143.6,143.57,7.53]
[1728094857707,10.17546688,143.6,143.57,11.0124]
[1728094860303,13.65716688,143.6,143.57,7.53]
[1728094861012,3.4821,143.59,143.56,5.0]
[1728094861204,3.4821,143.59,143.56,12.53]
[1728094862606,17.70546688,143.6,143.56,12.53]
[1728094863113,3.482,143.59,143.56,12.53]
[1728094865110,3.482,143.59,143.56,16.0126]
[1728094865813,10.17546688,143.6,143.57,7.53]
[1728094866011,13.65716688,143.6,143.57,11.0123]
[1728094869915,10.17546688,143.6,143.57,11.0123]
[1728094875512,13.65716688,143.6,143.57,11.0123]
[1728094876213,10.17546688,143.6,143.57,7.53]
[1728094876413,3.4821,143.59,143.57,7.53]
[1728094877115,3.4821,143.59,143.56,5.0]
[1728094880517,17.70546688,143.6,143.56,5.0]
[1728094880715,3.4823,143.58,143.56,5.0]
[1728094881421,7.53,143.58,143.53,3.4833]
[1728094881616,7.53,143.56,143.53,4.92]
[1728094881918,3.4831,143.55,143.51,104.00240906]
[1728094882129,3.4831,143.55,143.52,4.92]
[1728094883118,3.4831,143.55,143.52,12.45]
[1728094883522,3.4831,143.55,143.53,7.53]
[1728094886519,3.4831,143.55,143.52,12.45]
[1728094889318,10.302,143.58,143.53,7.53]
[1728094889519,3.4825,143.57,143.53,11.0133]
[1728094890818,3.4829,143.55,143.52,12.45]
[1728094892425,3.4827,143.56,143.53,7.53]
[1728094892830,3.4827,143.56,143.52,8.4036]
[1728094893031,3.4827,143.56,143.52,15.9336]
[1728094898939,3.4827,143.56,143.52,12.45]
[1728094899139,3.4827,143.56,143.53,3.4833]
[1728094899335,7.53,143.57,143.53,3.4833]
[1728094899538,7.53,143.57,143.54,7.53]
[1728094899539,3.4825,143.57,143.54,7.53]
[1728094901439,3.4825,143.57,143.54,11.0131]
[1728094901641,3.4825,143.57,143.54,3.4831]
[1728094901837,3.4828,143.56,143.53,7.53]
[1728094902333,3.4833,143.54,143.52,4.92]
[1728094902527,8.876,143.57,143.52,12.45]
[1728094903146,3.483,143.55,143.52,12.45]
[1728094903836,3.483,143.55,143.52,15.9336]
[1728094906149,3.4834,143.54,143.52,4.92]
[1728094906348,7.53,143.55,143.52,4.92]
[1728094906650,3.4834,143.53,143.52,4.92]
[1728094907348,3.4832,143.54,143.52,4.92]
[1728094910446,3.4829,143.55,143.52,4.92]
[1728094910647,7.53,143.56,143.52,4.92]
[1728094911248,3.4833,143.54,143.52,4.92]
[1728094912157,3.4834,143.53,143.52,4.92]
[1728094912956,3.4836,143.52,143.51,0.12502]
[1728094913150,11.0136,143.52,143.43,75.2]
[1728094913354,7.53,143.51,143.47,4.9]
[1728094913554,3.4841,143.5,143.47,4.9]
[1728094914153,3.4845,143.49,143.47,4.9]
[1728094914964,3.4846,143.48,143.46,4.9]
[1728094915850,3.4846,143.48,143.45,0.12502]
[1728094916250,3.4847,143.48,143.45,0.12502]
[1728094919059,3.4844,143.49,143.46,7.53]
[1728094919455,1.3231,143.5,143.46,7.53]
[1728094919661,3.4844,143.49,143.46,7.53]
[1728094920566,3.484,143.51,143.47,7.53]
[1728094920755,2.8066,143.52,143.47,7.53]
[1728094921563,3.4841,143.5,143.47,7.53]
[1728094921867,2.8066,143.52,143.49,7.53]
[1728094922170,6.2904,143.52,143.49,7.53]
[1728094922853,3.4839,143.51,143.49,7.53]
[1728094923363,2.8066,143.52,143.49,7.53]
[1728094923565,1.4128,143.56,143.5,7.53]
[1728094923861,2.7527,143.56,143.51,7.53]
[1728094924362,3.4829,143.55,143.51,7.53]
[1728094924857,10.2827,143.56,143.51,7.53]
[1728094925061,3.4833,143.54,143.5,15.9139]
[1728094930166,2.7527,143.56,143.5,12.43]
[1728094930359,3.483,143.55,143.51,3.4837]
[1728094930765,10.2827,143.56,143.5,12.43]
[1728094931162,13.7655,143.56,143.52,11.0136]
[1728094931355,10.2827,143.56,143.52,7.53]
[1728094932769,10.2827,143.56,143.52,11.0134]
[1728094933066,1.3399,143.56,143.52,7.53]
[1728094933463,4.8225,143.56,143.53,3.4833]
[1728094933765,4.8225,143.56,143.52,7.53]
[1728094934768,4.8225,143.56,143.52,11.0135]
[1728094935167,11.13752,143.57,143.5,4.9]
[1728094935358,11.13752,143.57,143.52,7.53]
[1728094935563,11.13752,143.57,143.53,4.9]
[1728094936169,11.13752,143.57,143.53,8.3831]
[1728094938478,3.60752,143.57,143.53,8.3831]
[1728094938674,0.12502,143.57,143.53,4.9]
[1728094938872,7.65502,143.57,143.53,4.9]
[1728094939966,11.13752,143.57,143.53,8.3833]
[1728094941561,7.53,143.56,143.53,8.3833]
[1728094943473,7.53,143.56,143.53,4.9]
[1728094943678,11.0128,143.56,143.53,4.9]
[1728094952694,3.4828,143.56,143.53,4.9]
[1728094955287,3.4835,143.53,143.49,3.4842]
[1728094955486,3.4835,143.53,143.51,4.92]
[1728094955677,7.53,143.53,143.48,7.53]
[1728094955880,3.4836,143.52,143.49,4.92]
[1728094956493,3.4836,143.52,143.49,8.4043]
[1728094957984,3.4836,143.52,143.5,7.53]
[1728094958199,3.4836,143.52,143.49,15.9343]
[1728094958387,5.04502,143.57,143.49,12.45]
[1728094958587,3.4833,143.54,143.51,3.4838]
[1728094959198,3.4833,143.54,143.5,11.014]
[1728094980905,3.4833,143.54,143.51,4.88]
[1728094984004,7.53,143.53,143.46,1.4382]
[1728094984202,7.53,143.52,143.46,7.53]
[1728094984411,11.0139,143.51,143.47,8.3647]
[1728094984612,7.53,143.51,143.47,8.3647]
[1728094984805,7.53,143.5,143.47,4.88]
[1728094985118,11.0142,143.5,143.47,4.88]
[1728094985800,3.4844,143.49,143.47,4.88]
[1728094988212,7.53,143.5,143.47,4.88]
[1728094988417,3.4842,143.5,143.47,11.0148]
[1728094988712,3.4842,143.5,143.47,15.8948]
[1728094995017,11.0137,143.52,143.48,3.4844]
[1728094995319,11.0137,143.52,143.47,12.41]
[1728094995725,11.0137,143.52,143.48,3.4845]
[1728094998823,11.0137,143.52,143.48,11.0145]
[1728094999124,13.7062,143.53,143.49,3.4842]
[1728094999719,13.7062,143.53,143.49,11.0142]
[1728095001423,12.422,143.54,143.5,3.4839]
[1728095001827,12.422,143.54,143.5,8.3239]
[1728095002025,12.422,143.54,143.51,3.4838]
[1728095002816,12.422,143.54,143.5,8.3241]
[1728095012044,3.4834,143.53,143.5,4.84]
[1728095014842,1.4087,143.54,143.46,7.53]
[1728095015043,7.53,143.51,143.47,4.84]
[1728095015957,7.53,143.49,143.47,4.84]
[1728095016154,7.53,143.48,143.45,0.12502]
[1728095016348,3.485,143.47,143.45,4.96502]
[1728095025052,3.485,143.47,143.45,0.12502]
[1728095044368,4.84,143.52,143.47,3.4847]
[1728095044567,7.53,143.51,143.46,7.53]
[1728095044771,3.4843,143.5,143.46,7.53]
[1728095045077,3.4843,143.5,143.46,11.015]
[1728095045470,3.4844,143.49,143.46,7.53]
[1728095046170,3.4844,143.49,143.45,11.14022]
[1728095047669,3.4844,143.49,143.45,3.61022]
[1728095048179,11.0144,143.49,143.45,3.61022]
[1728095056378,3.4846,143.48,143.45,3.61022]
[1728095056578,3.4846,143.48,143.45,0.12502]
[1728095065404,3.4851,143.46,143.45,0.12502]
[1728095065604,11.0151,143.46,143.45,0.12502]
[1728095068307,3.4856,143.44,143.41,104.74123061]
[1728095070599,3.4856,143.44,143.41,112.27123061]
[1728095070798,7.53,143.46,143.41,107.43123061]
[1728095071008,3.4855,143.45,143.41,112.27123061]
[1728095071606,4.0909,143.48,143.41,101.25503061]
[1728095071909,3.4849,143.47,143.43,11.0156]
[1728095072808,3.4853,143.46,143.43,7.53]
[1728095073007,3.4853,143.46,143.42,11.0159]
[1728095075213,3.4853,143.46,143.42,7.53]
[1728095075415,3.4853,143.46,143.41,101.25503061]
[1728095075416,7.5756,143.48,143.44,3.4855]
[1728095075612,15.1056,143.48,143.44,3.4855]
[1728095076414,3.4849,143.47,143.43,7.53]
[1728095076611,3.4849,143.47,143.43,11.0157]
[1728095077503,1.3071,143.48,143.46,7.53]
[1728095077706,2.7461,143.56,143.47,7.53]
[1728095077910,7.53,143.52,143.47,7.53]
[1728095078107,7.53,143.52,143.47,12.37]
[1728095078306,3.60902,143.51,143.47,15.8546]
[1728095079115,0.12502,143.51,143.5,7.53]
[1728095079720,0.12502,143.51,143.5,11.0141]
[1728095080714,0.12502,143.51,143.49,3.4843]
[1728095080916,3.60892,143.51,143.47,4.84]
[1728095081118,3.60892,143.51,143.48,11.0145]
[1728095081119,0.12502,143.51,143.48,11.0145]
[1728095084120,0.12502,143.51,143.48,7.53]
[1728095084321,0.12502,143.51,143.49,3.4843]
[1728095092914,0.12502,143.51,143.5,15.8541]
[1728095094118,1.3435,143.56,143.54,3.4831]
[1728095094326,1.3435,143.56,143.54,8.3231]
[1728095098119,3.4829,143.55,143.54,4.84]
[1728095098320,8.8735,143.56,143.54,4.84]
[1728095099126,12.3562,143.56,143.54,4.84]
[1728095100321,8.8735,143.56,143.54,4.84]
[1728095100525,8.8735,143.56,143.54,8.3231]